fUSD/lending_fUSD_20250618
["ID","MTS","AMOUNT","RATE_DAILY","PERIOD"]
[366418193,1750241444611,-151.0,0.00016438,2]
[366418194,1750241444621,-174.479689,0.00016438,2]
[366418195,1750241444630,-152.627744,0.00016438,2]
[366418196,1750241444640,-151.92952,0.00016438,2]
[366418197,1750241444649,-151.0,0.00016438,2]
[366418198,1750241444659,-151.0,0.00016438,2]
[366418199,1750241444669,-151.0,0.00016438,2]
[366418200,1750241444679,-151.0,0.00016438,2]
[366418201,1750241444688,-15.29906202,0.00016438,2]
[366418202,1750241444703,-135.70093798,0.00016438,2]
[366418203,1750241444713,-151.0,0.00016438,2]
[366418204,1750241444722,-151.0,0.00016438,2]
[366418205,1750241444731,-151.0,0.00016438,2]
[366418206,1750241444741,-300.701306,0.00016438,2]
[366418207,1750241444750,-300.701306,0.00016438,2]
[366418208,1750241444760,-151.0,0.00016438,2]
[366418209,1750241444770,-151.0,0.00016438,2]
[366418210,1750241444779,-151.0,0.00016438,2]
[366418211,1750241444788,-151.0,0.00016438,2]
[366418212,1750241444798,-151.0,0.00016438,2]
[366418213,1750241444808,-151.0,0.00016438,2]
[366418214,1750241444817,-151.0,0.00016438,2]
[366418215,1750241444827,-151.0,0.00016438,2]
[366418216,1750241444837,-151.0,0.00016438,2]
[366418217,1750241444848,-151.0,0.00016438,2]
[366418218,1750241444856,-151.0,0.00016438,2]
[366418219,1750241444865,-151.0,0.00016438,2]
[366418220,1750241444874,-2459.513389,0.00016438,2]
[366418221,1750241444884,-365.653312,0.00016438,2]
[366418222,1750241444893,-160.941803,0.00016438,2]
[366418223,1750241444903,-365.653312,0.00016438,2]
[366418224,1750241444913,-723.029871,0.00016438,2]
[366418225,1750241444922,-161.184063,0.00016438,2]
[366418226,1750241444932,-723.029871,0.00016438,2]
[366418227,1750241444941,-151.0,0.00016438,2]
[366418228,1750241444951,-152.266365,0.00016438,2]
[366418229,1750241444960,-151.142837,0.00016438,2]
[366418230,1750241444969,-940.667229,0.00016438,2]
[366418231,1750241444978,-151.0,0.00016438,2]
[366418232,1750241444987,-151.0,0.00016438,2]
[366418233,1750241444998,-151.0,0.00016438,2]
[366418234,1750241445009,-151.0,0.00016438,2]
[366418235,1750241445018,-151.0,0.00016438,2]
[366418236,1750241445028,-151.0,0.00016438,2]
[366418237,1750241445038,-490.0,0.00016438,2]
[366418238,1750241445047,-490.70135508,0.00016438,2]
[366418239,1750241445056,-296.36886698,0.00016438,2]
[366418240,1750241445066,-151.0,0.00016438,2]
[366418241,1750241445076,-152.363932,0.00016438,2]
[366418242,1750241445085,-217.22882888,0.00016438,2]
[366418243,1750241445095,-151.0,0.00016438,2]
[366418244,1750241445107,-151.0,0.00016438,2]
[366418245,1750241445116,-151.0,0.00016438,2]
[366418246,1750241445125,-151.0,0.00016438,2]
[366418247,1750241445134,-151.0,0.00016438,2]
[366418248,1750241445144,-151.0,0.00016438,2]
[366418249,1750241445154,-151.0,0.00016438,2]
[366418250,1750241445164,-151.0,0.00016438,2]
[366418251,1750241445173,-151.237456,0.00016438,2]
[366418252,1750241445184,-151.0,0.00016438,2]
[366418253,1750241445193,-151.0,0.00016438,2]
[366418254,1750241445203,-151.0,0.00016438,2]
[366418255,1750241445212,-151.0,0.00016438,2]
[366418256,1750241445222,-151.0,0.00016438,2]
[366418257,1750241445232,-151.0,0.00016438,2]
[366418258,1750241445241,-151.0,0.00016438,2]
[366418259,1750241445251,-152.325058,0.00016438,2]
[366418260,1750241445261,-151.0,0.00016438,2]
[366418261,1750241445271,-151.0,0.00016438,2]
[366418262,1750241445282,-151.0,0.00016438,2]
[366418263,1750241445292,-490.0,0.00016438,2]
[366418264,1750241445302,-490.98754556,0.00016438,2]
[366418265,1750241445312,-291.502934,0.00016438,2]
[366418266,1750241445321,-490.0,0.00016438,2]
[366418267,1750241445331,-499.8895779,0.00016438,2]
[366418268,1750241445341,-490.0,0.00016438,2]
[366418269,1750241445351,-598.39180728,0.00016438,2]
[366418270,1750241445361,-491.084431,0.00016438,2]
[366418271,1750241445372,-151.0,0.00016438,2]
[366418272,1750241445382,-151.0,0.00016438,2]
[366418273,1750241445392,-280.924196,0.00016438,2]
[366418274,1750241445402,-626.42,0.00016438,2]
[366418275,1750241445413,-151.0,0.00016438,2]
[366418276,1750241445423,-151.0,0.00016438,2]
[366418277,1750241445433,-151.0,0.00016438,2]
[366418278,1750241445443,-151.0,0.00016438,2]
[366418279,1750241445452,-490.0,0.00016438,2]
[366418280,1750241445462,-340.59198904,0.00016438,2]
[366418281,1750241445472,-757.89,0.00016438,2]
[366418282,1750241445481,-757.89,0.00016438,2]
[366418283,1750241445491,-757.89,0.00016438,2]
[366418284,1750241445500,-757.89,0.00016438,2]
[366418285,1750241445510,-757.89,0.00016438,2]
[366418286,1750241445519,-490.0,0.00016438,2]
[366418287,1750241445528,-490.0,0.00016438,2]
[366418288,1750241445538,-492.00723609,0.00016438,2]
[366418289,1750241445548,-304.10324989,0.00016438,2]
[366418290,1750241445558,-490.0,0.00016438,2]
[366418291,1750241445567,-882.33,0.00016438,2]
[366418292,1750241445577,-490.0,0.00016438,2]
[366418293,1750241445587,-490.0,0.00016438,2]
[366418294,1750241445596,-150.0,0.00016438,2]
[366418295,1750241445605,-490.0,0.00016438,2]
[366418296,1750241445616,-493.67045002,0.00016438,2]
[366418297,1750241445625,-150.0,0.00016438,2]
[366418298,1750241445635,-490.0,0.00016438,2]
[366418299,1750241445644,-150.0,0.00016438,2]
[366418300,1750241445653,-490.0,0.00016438,2]
[366418301,1750241445663,-439.16760867,0.00016438,2]
[366418302,1750241445672,-500.0,0.00016438,2]
[366418303,1750241445681,-750.47,0.00016438,2]
[366418304,1750241445691,-719.21,0.00016438,2]
[366418305,1750241445701,-490.0,0.00016438,2]
[366418306,1750241445711,-150.0,0.00016438,2]
[366418307,1750241445720,-687.47,0.00016438,2]
[366418308,1750241445730,-150.77671026,0.00016438,2]
[366418309,1750241445740,-150.0,0.00016438,2]
[366418310,1750241445750,-151.0,0.00016438,2]
[366418311,1750241445759,-151.0,0.00016438,2]
[366418312,1750241445769,-153.066658,0.00016438,2]
[366418313,1750241445778,-490.0,0.00016438,2]
[366418314,1750241445788,-490.0,0.00016438,2]
[366418315,1750241445799,-151.0,0.00016438,2]
[366418316,1750241445808,-491.52,0.00016438,2]
[366418317,1750241445817,-151.0,0.00016438,2]
[366418318,1750241445827,-1185.12,0.00016438,2]
[366418319,1750241445837,-151.0,0.00016438,2]
[366418320,1750241445846,-151.0,0.00016438,2]
[366418321,1750241445856,-150.0,0.00016438,2]
[366418322,1750241445866,-490.0,0.00016438,2]
[366418323,1750241445874,-481.24287783,0.00016438,2]
[366418324,1750241445884,-493.9,0.00016438,2]
[366418325,1750241445894,-490.0,0.00016438,2]
[366418326,1750241445903,-275.538435,0.00016438,2]
[366418327,1750241445913,-490.0,0.00016438,2]
[366418328,1750241445923,-490.0,0.00016438,2]
[366418329,1750241445933,-493.5353936,0.00016438,2]
[366418330,1750241445942,-584.61,0.00016438,2]
[366418331,1750241445954,-495.82507103,0.00016438,2]
[366418332,1750241445963,-490.0,0.00016438,2]
[366418333,1750241445973,-603.87,0.00016438,2]
[366418334,1750241445983,-490.0,0.00016438,2]
[366418335,1750241445992,-490.0,0.00016438,2]
[366418336,1750241446002,-490.0,0.00016438,2]
[366418339,1750241446183,-490.0,0.00016438,2]
[366418340,1750241446217,-490.0,0.00016438,2]
[366418341,1750241446229,-490.0,0.00016438,2]
[366418342,1750241446239,-490.0,0.00016438,2]
[366418343,1750241446249,-490.0,0.00016438,2]
[366418344,1750241446260,-362.783926,0.00016438,2]
[366418345,1750241446270,-1470.18,0.00016438,2]
[366418346,1750241446280,-362.783926,0.00016438,2]
[366418347,1750241446292,-490.0,0.00016438,2]
[366418348,1750241446302,-362.783926,0.00016438,2]
[366418349,1750241446312,-362.783926,0.00016438,2]
[366418350,1750241446322,-490.0,0.00016438,2]
[366418351,1750241446333,-151.0,0.00016438,2]
[366418352,1750241446343,-151.0,0.00016438,2]
[366418353,1750241446354,-151.0,0.00016438,2]
[366418354,1750241446365,-490.0,0.00016438,2]
[366418355,1750241446376,-788.54,0.00016438,2]
[366418356,1750241446386,-490.0,0.00016438,2]
[366418357,1750241446396,-417.13208806,0.00016438,2]
[366418358,1750241446406,-493.28347778,0.00016438,2]
[366418359,1750241446416,-490.0,0.00016438,2]
[366418360,1750241446426,-1048.67,0.00016438,2]
[366418361,1750241446435,-151.0,0.00016438,2]
[366418362,1750241446445,-490.0,0.00016438,2]
[366418363,1750241446455,-151.0,0.00016438,2]
[366418364,1750241446466,-490.0,0.00016438,2]
[366418365,1750241446475,-151.0,0.00016438,2]
[366418366,1750241446486,-1514.62,0.00016438,2]
[366418367,1750241446497,-401.63317085,0.00016438,2]
[366418368,1750241446507,-151.0,0.00016438,2]
[366418369,1750241446518,-151.0,0.00016438,2]
[366418370,1750241446528,-151.0,0.00016438,2]
[366418371,1750241446538,-490.0,0.00016438,2]
[366418372,1750241446549,-490.0,0.00016438,2]
[366418373,1750241446559,-490.0,0.00016438,2]
[366418374,1750241446569,-434.20619035,0.00016438,2]
[366418375,1750241446579,-490.0,0.00016438,2]
[366418376,1750241446589,-517.78582032,0.00016438,2]
[366418378,1750241446599,-152.345492,0.00016438,2]
[366418380,1750241446609,-495.02861797,0.00016438,2]
[366418381,1750241446619,-490.0,0.00016438,2]
[366418382,1750241446628,-490.0,0.00016438,2]
[366418383,1750241446639,-490.0,0.00016438,2]
[366418384,1750241446648,-496.4854262,0.00016438,2]
[366418385,1750241446657,-490.0,0.00016438,2]
[366418386,1750241446666,-503.15652303,0.00016438,2]
[366418387,1750241446676,-490.0,0.00016438,2]
[366418388,1750241446686,-706.77,0.00016438,2]
[366418389,1750241446696,-490.0,0.00016438,2]
[366418390,1750241446706,-490.0,0.00016438,2]
[366418391,1750241446717,-345.891374,0.00016438,2]
[366418393,1750241446727,-345.891374,0.00016438,2]
[366418394,1750241446736,-345.891374,0.00016438,2]
[366418395,1750241446746,-151.0,0.00016438,2]
[366418396,1750241446756,-151.0,0.00016438,2]
[366418397,1750241446765,-151.0,0.00016438,2]
[366418398,1750241446775,-1063.68,0.00016438,2]
[366418399,1750241446786,-493.66078464,0.00016438,2]
[366418400,1750241446795,-345.891374,0.00016438,2]
[366418401,1750241446805,-345.891374,0.00016438,2]
[366418402,1750241446815,-345.891374,0.00016438,2]
[366418403,1750241446825,-491.65072955,0.00016438,2]
[366418404,1750241446836,-491.5898332,0.00016438,2]
[366418405,1750241446846,-501.36,0.00016438,2]
[366418406,1750241446856,-490.0,0.00016438,2]
[366418407,1750241446866,-711.38,0.00016438,2]
[366418408,1750241446875,-359.9381307,0.00016438,2]
[366418409,1750241446885,-490.0,0.00016438,2]
[366418410,1750241446895,-151.0,0.00016438,2]
[366418411,1750241446905,-151.0,0.00016438,2]
[366418412,1750241446915,-151.0,0.00016438,2]
[366418413,1750241446925,-151.0,0.00016438,2]
[366418414,1750241446934,-151.0,0.00016438,2]
[366418415,1750241446944,-151.0,0.00016438,2]
[366418416,1750241446953,-151.0,0.00016438,2]
[366418417,1750241446963,-151.0,0.00016438,2]
[366418418,1750241446974,-151.0,0.00016438,2]
[366418419,1750241446983,-490.0,0.00016438,2]
[366418420,1750241446993,-490.0,0.00016438,2]
[366418421,1750241447003,-490.0,0.00016438,2]
[366418422,1750241447012,-490.0,0.00016438,2]
[366418423,1750241447022,-501.13467036,0.00016438,2]
[366418424,1750241447031,-490.0,0.00016438,2]
[366418425,1750241447041,-623.59,0.00016438,2]
[366418426,1750241447051,-507.41,0.00016438,2]
[366418427,1750241447061,-490.0,0.00016438,2]
[366418428,1750241447072,-490.0,0.00016438,2]
[366418429,1750241447083,-490.0,0.00016438,2]
[366418430,1750241447097,-490.0,0.00016438,2]
[366418431,1750241447113,-657.96,0.00016438,2]
[366418432,1750241447124,-151.0,0.00016438,2]
[366418433,1750241447134,-151.0,0.00016438,2]
[366418434,1750241447144,-151.0,0.00016438,2]
[366418435,1750241447155,-490.0,0.00016438,2]
[366418436,1750241447164,-490.0,0.00016438,2]
[366418437,1750241447175,-490.0,0.00016438,2]
[366418438,1750241447187,-490.0,0.00016438,2]
[366418439,1750241447198,-490.0,0.00016438,2]
[366418440,1750241447208,-151.0,0.00016438,2]
[366418441,1750241447219,-151.0,0.00016438,2]
[366418442,1750241447229,-151.0,0.00016438,2]
[366418443,1750241447239,-491.36996923,0.00016438,2]
[366418444,1750241447249,-490.0,0.00016438,2]
[366418445,1750241447259,-490.0,0.00016438,2]
[366418446,1750241447270,-151.0,0.00016438,2]
[366418447,1750241447280,-151.0,0.00016438,2]
[366418448,1750241447291,-151.0,0.00016438,2]
[366418449,1750241447302,-490.0,0.00016438,2]
[366418450,1750241447312,-153.421502,0.00016438,2]
[366418451,1750241447322,-151.0,0.00016438,2]
[366418452,1750241447333,-151.0,0.00016438,2]
[366418453,1750241447344,-151.0,0.00016438,2]
[366418454,1750241447355,-490.0,0.00016438,2]
[366418455,1750241447365,-490.0,0.00016438,2]
[366418456,1750241447375,-391.213856,0.00016438,2]
[366418457,1750241447385,-391.213856,0.00016438,2]
[366418458,1750241447396,-391.213856,0.00016438,2]
[366418459,1750241447406,-391.213856,0.00016438,2]
[366418460,1750241447416,-944.98,0.00016438,2]
[366418461,1750241447425,-490.0,0.00016438,2]
[366418462,1750241447435,-490.0,0.00016438,2]
[366418463,1750241447446,-391.213856,0.00016438,2]
[366418464,1750241447456,-391.213856,0.00016438,2]
[366418465,1750241447466,-391.213856,0.00016438,2]
[366418466,1750241447477,-490.0,0.00016438,2]
[366418467,1750241447487,-391.213856,0.00016438,2]
[366418468,1750241447497,-490.0,0.00016438,2]
[366418469,1750241447508,-154.45066927,0.00016438,2]
[366418470,1750241447518,-490.0,0.00016438,2]
[366418471,1750241447529,-490.0,0.00016438,2]
[366418472,1750241447539,-490.0,0.00016438,2]
[366418473,1750241447549,-490.0,0.00016438,2]
[366418474,1750241447559,-602.27,0.00016438,2]
[366418475,1750241447570,-490.0,0.00016438,2]
[366418476,1750241447579,-890.19,0.00016438,2]
[366418477,1750241447589,-490.0,0.00016438,2]
[366418478,1750241447599,-756.84,0.00016438,2]
[366418479,1750241447609,-490.0,0.00016438,2]
[366418480,1750241447619,-490.0,0.00016438,2]
[366418481,1750241447629,-523.5,0.00016438,2]
[366418482,1750241447638,-887.51,0.00016438,2]
[366418483,1750241447648,-490.0,0.00016438,2]
[366418484,1750241447658,-791.73,0.00016438,2]
[366418485,1750241447668,-490.0,0.00016438,2]
[366418486,1750241447677,-490.0,0.00016438,2]
[366418487,1750241447687,-490.0,0.00016438,2]
[366418488,1750241447696,-490.0,0.00016438,2]
[366418489,1750241447706,-521.72,0.00016438,2]
[366418490,1750241447716,-490.0,0.00016438,2]
[366418491,1750241447725,-490.0,0.00016438,2]
[366418492,1750241447735,-490.0,0.00016438,2]
[366418493,1750241447745,-490.0,0.00016438,2]
[366418494,1750241447755,-490.0,0.00016438,2]
[366418495,1750241447765,-1094.7,0.00016438,2]
[366418496,1750241447775,-549.18,0.00016438,2]
[366418497,1750241447784,-492.03968214,0.00016438,2]
[366418498,1750241447794,-490.0,0.00016438,2]
[366418499,1750241447805,-1482.08,0.00016438,2]
[366418500,1750241447815,-151.0,0.00016438,2]
[366418501,1750241447825,-151.0,0.00016438,2]
[366418502,1750241447835,-151.0,0.00016438,2]
[366418503,1750241447844,-151.0,0.00016438,2]
[366418504,1750241447854,-151.0,0.00016438,2]
[366418505,1750241447864,-151.0,0.00016438,2]
[366418506,1750241447873,-280.672671,0.00016438,2]
[366418507,1750241447883,-490.0,0.00016438,2]
[366418508,1750241447893,-788.47,0.00016438,2]
[366418509,1750241447903,-623.59,0.00016438,2]
[366418510,1750241447912,-490.0,0.00016438,2]
[366418511,1750241447921,-490.0,0.00016438,2]
[366418512,1750241447928,-490.0,0.00016438,2]
[366418513,1750241447937,-645.47,0.00016438,2]
[366418514,1750241447944,-490.0,0.00016438,2]
[366418515,1750241447951,-1462.77,0.00016438,2]
[366418516,1750241447959,-490.0,0.00016438,2]
[366418517,1750241447967,-490.0,0.00016438,2]
[366418518,1750241447977,-751.48,0.00016438,2]
[366418519,1750241447987,-578.2,0.00016438,2]
[366418520,1750241447997,-490.0,0.00016438,2]
[366418521,1750241448006,-418.60019253,0.00016438,2]
[366418522,1750241448016,-635.2,0.00016438,2]
[366418523,1750241448026,-490.0,0.00016438,2]
[366418524,1750241448037,-555.44,0.00016438,2]
[366418525,1750241448047,-412.6322708,0.00016438,2]
[366418526,1750241448964,-77.3677292,0.00016438,2]
[366418527,1750241448974,-381.1072708,0.00016438,2]
[366418528,1750241448986,-108.8927292,0.00016438,2]
[366418529,1750241448995,-490.0,0.00016438,2]
[366418530,1750241449005,-743.89,0.00016438,2]
[366418531,1750241449015,-490.0,0.00016438,2]
[366418532,1750241449025,-490.0,0.00016438,2]
[366418533,1750241449034,-601.75,0.00016438,2]
[366418534,1750241449044,-388.79803693,0.00016438,2]
[366418535,1750241449053,-312.74,0.00016438,2]
[366418536,1750241449064,-490.0,0.00016438,2]
[366418537,1750241449073,-721.18,0.00016438,2]
[366418538,1750241449083,-492.09097797,0.00016438,2]
[366418539,1750241449092,-490.0,0.00016438,2]
[366418540,1750241449103,-490.0,0.00016438,2]
[366418541,1750241449116,-492.94593761,0.00016438,2]
[366418542,1750241449126,-490.0,0.00016438,2]
[366418543,1750241449139,-490.0,0.00016438,2]
[366418544,1750241449152,-713.45,0.00016438,2]
[366418545,1750241449162,-415.5785691,0.00016438,2]
[366418546,1750241449171,-490.0,0.00016438,2]
[366418547,1750241449181,-963.83,0.00016438,2]
[366418548,1750241449193,-280.82088319,0.00016438,2]
[366418549,1750241449202,-490.0,0.00016438,2]
[366418550,1750241449212,-490.0,0.00016438,2]
[366418551,1750241449222,-499.72103063,0.00016438,2]
[366418552,1750241449232,-390.91119916,0.00016438,2]
[366418553,1750241449241,-1177.85,0.00016438,2]
[366418554,1750241449251,-504.11665116,0.00016438,2]
[366418555,1750241449261,-490.0,0.00016438,2]
[366418556,1750241449271,-490.0,0.00016438,2]
[366418557,1750241449281,-300.0,0.00016438,2]
[366418558,1750241449291,-490.0,0.00016438,2]
[366418559,1750241449301,-316.940552,0.00016438,2]
[366418560,1750241449311,-316.940552,0.00016438,2]
[366418561,1750241449320,-316.940552,0.00016438,2]
[366418562,1750241449331,-679.27,0.00016438,2]
[366418563,1750241449341,-490.0,0.00016438,2]
[366418564,1750241449351,-493.42,0.00016438,2]
[366418565,1750241449360,-490.0,0.00016438,2]
[366418566,1750241449371,-610.27,0.00016438,2]
[366418567,1750241449381,-490.0,0.00016438,2]
[366418568,1750241449391,-654.05,0.00016438,2]
[366418569,1750241449401,-316.940552,0.00016438,2]
[366418570,1750241449410,-316.940552,0.00016438,2]
[366418571,1750241449420,-941.82,0.00016438,2]
[366418572,1750241449430,-316.940552,0.00016438,2]
[366418573,1750241449439,-490.0,0.00016438,2]
[366418574,1750241449449,-1077.4,0.00016438,2]
[366418575,1750241449459,-490.0,0.00016438,2]
[366418576,1750241449468,-490.0,0.00016438,2]
[366418577,1750241449478,-490.0,0.00016438,2]
[366418578,1750241449488,-269.378634,0.00016438,2]
[366418579,1750241449497,-408.17848044,0.00016438,2]
[366418580,1750241449513,-81.82151956,0.00016438,2]
[366418581,1750241449522,-490.0,0.00016438,2]
[366418582,1750241449532,-269.378634,0.00016438,2]
[366418583,1750241449543,-490.0,0.00016438,2]
[366418584,1750241449553,-269.378634,0.00016438,2]
[366418585,1750241449562,-559.51,0.00016438,2]
[366418586,1750241449572,-249.24530244,0.00016438,2]
[366418587,1750241449594,-1004.54469756,0.00016438,2]
[366418588,1750241449604,-463.44127136,0.00016438,2]
[366418589,1750241450395,-26.55872864,0.00016438,2]
[366418590,1750241450405,-272.11127137,0.00016438,2]
[366418591,1750241450417,-413.69196566,0.00016438,2]
[366418592,1750241450434,-195.10676297,0.00016438,2]
[366418593,1750241450444,-490.0,0.00016438,2]
[366418594,1750241450455,-873.6,0.00016438,2]
[366418595,1750241450465,-707.1,0.00016438,2]
[366418596,1750241450475,-735.93,0.00016438,2]
[366418597,1750241450485,-490.0,0.00016438,2]
[366418598,1750241450495,-269.378634,0.00016438,2]
[366418599,1750241450505,-269.378634,0.00016438,2]
[366418600,1750241450515,-269.378634,0.00016438,2]
[366418601,1750241450529,-490.0,0.00016438,2]
[366418602,1750241450540,-490.0,0.00016438,2]
[366418603,1750241450550,-623.51,0.00016438,2]
[366418604,1750241450560,-926.25,0.00016438,2]
[366418605,1750241450570,-490.0,0.00016438,2]
[366418606,1750241450581,-1595.58,0.00016438,2]
[366418607,1750241450591,-490.0,0.00016438,2]
[366418608,1750241450601,-490.0,0.00016438,2]
[366418609,1750241450612,-490.0,0.00016438,2]
[366418610,1750241450622,-490.0,0.00016438,2]
[366418611,1750241450632,-490.0,0.00016438,2]
[366418612,1750241450642,-490.0,0.00016438,2]
[366418613,1750241450654,-490.0,0.00016438,2]
[366418614,1750241450664,-785.41,0.00016438,2]
[366418615,1750241450674,-490.0,0.00016438,2]
[366418616,1750241450684,-490.0,0.00016438,2]
[366418617,1750241450694,-490.0,0.00016438,2]
[366418618,1750241450703,-635.42,0.00016438,2]
[366418619,1750241450713,-490.0,0.00016438,2]
[366418620,1750241450723,-614.81,0.00016438,2]
[366418621,1750241450732,-799.92,0.00016438,2]
[366418622,1750241450742,-206.77960578,0.00016438,2]
[366418623,1750241450752,-490.0,0.00016438,2]
[366418624,1750241450761,-490.0,0.00016438,2]
[366418625,1750241450771,-490.0,0.00016438,2]
[366418626,1750241450780,-490.0,0.00016438,2]
[366418627,1750241450790,-1488.67,0.00016438,2]
[366418628,1750241450800,-636.42,0.00016438,2]
[366418629,1750241450809,-490.0,0.00016438,2]
[366418630,1750241450819,-490.0,0.00016438,2]
[366418631,1750241450828,-490.0,0.00016438,2]
[366418632,1750241450837,-592.69,0.00016438,2]
[366418633,1750241450848,-547.69539328,0.00016438,2]
[366418634,1750241450857,-659.69,0.00016438,2]
[366418635,1750241450868,-490.0,0.00016438,2]
[366418636,1750241450878,-490.0,0.00016438,2]
[366418637,1750241450888,-547.22,0.00016438,2]
[366418638,1750241450898,-490.0,0.00016438,2]
[366418639,1750241450908,-1124.78,0.00016438,2]
[366418640,1750241450917,-490.0,0.00016438,2]
[366418641,1750241450927,-558.92,0.00016438,2]
[366418642,1750241450937,-490.0,0.00016438,2]
[366418643,1750241450947,-490.0,0.00016438,2]
[366418644,1750241450957,-889.48,0.00016438,2]
[366418645,1750241450967,-490.0,0.00016438,2]
[366418646,1750241451049,-1412.46,0.00016438,2]
[366418647,1750241451063,-490.0,0.00016438,2]
[366418648,1750241451073,-490.0,0.00016438,2]
[366418649,1750241451082,-847.46,0.00016438,2]
[366418650,1750241451092,-744.58,0.00016438,2]
[366418651,1750241451103,-490.0,0.00016438,2]
[366418652,1750241451116,-490.0,0.00016438,2]
[366418653,1750241451126,-151.0,0.00016438,2]
[366418654,1750241451136,-1231.56,0.00016438,2]
[366418655,1750241451145,-151.0,0.00016438,2]
[366418656,1750241451156,-151.0,0.00016438,2]
[366418657,1750241451165,-1391.01,0.00016438,2]
[366418658,1750241451175,-490.0,0.00016438,2]
[366418659,1750241451186,-371.634976,0.00016438,2]
[366418660,1750241451196,-371.634976,0.00016438,2]
[366418661,1750241451209,-490.0,0.00016438,2]
[366418662,1750241451218,-151.0,0.00016438,2]
[366418663,1750241451228,-540.18,0.00016438,2]
[366418664,1750241451237,-943.13,0.00016438,2]
[366418665,1750241451247,-234.410436,0.00016438,2]
[366418666,1750241451257,-171.999727,0.00016438,2]
[366418667,1750241451266,-171.999727,0.00016438,2]
[366418668,1750241451276,-171.999727,0.00016438,2]
[366418669,1750241451286,-424.2443884,0.00016438,2]
[366418670,1750241451295,-490.0,0.00016438,2]
[366418671,1750241451305,-490.0,0.00016438,2]
[366418672,1750241451315,-1706.42,0.00016438,2]
[366418673,1750241451325,-153.023233,0.00016438,2]
[366418674,1750241451335,-171.999727,0.00016438,2]
[366418675,1750241451346,-171.999727,0.00016438,2]
[366418676,1750241451356,-1214.71,0.00016438,2]
[366418677,1750241451365,-171.999727,0.00016438,2]
[366418678,1750241451375,-490.0,0.00016438,2]
[366418679,1750241451385,-490.0,0.00016438,2]
[366418680,1750241451395,-600.8,0.00016438,2]
[366418681,1750241451404,-490.0,0.00016438,2]
[366418682,1750241451416,-501.89,0.00016438,2]
[366418683,1750241451427,-490.0,0.00016438,2]
[366418684,1750241451437,-1945.89,0.00016438,2]
[366418685,1750241451448,-490.0,0.00016438,2]
[366418686,1750241451458,-1177.07,0.00016438,2]
[366418687,1750241451468,-635.16,0.00016438,2]
[366418688,1750241451478,-734.22,0.00016438,2]
[366418689,1750241451487,-1352.37,0.00016438,2]
[366418690,1750241451497,-649.61,0.00016438,2]
[366418691,1750241451506,-490.0,0.00016438,2]
[366418692,1750241451516,-490.0,0.00016438,2]
[366418693,1750241451525,-490.0,0.00016438,2]
[366418694,1750241451534,-490.0,0.00016438,2]
[366418695,1750241451543,-490.0,0.00016438,2]
[366418696,1750241451553,-151.0,0.00016438,2]
[366418697,1750241451562,-151.0,0.00016438,2]